bitfinex/quotes_BTCUSD_20240815
["timestamp","ask_amount","ask_price","bid_price","bid_amount"]
[1723730987124,2.05911608,59569.0,59568.0,0.011086]
[1723730987373,2.05911608,59569.0,59568.0,0.008086]
[1723730988405,2.04711608,59569.0,59568.0,0.007086]
[1723730988731,2.06111608,59569.0,59568.0,0.007086]
[1723730989187,2.44842218,59569.0,59568.0,0.007086]
[1723730989339,2.43442218,59569.0,59568.0,0.007086]
[1723730989550,2.38286108,59569.0,59568.0,0.007086]
[1723730989740,2.05811608,59569.0,59568.0,0.007086]
[1723730989948,1.88656154,59569.0,59568.0,0.007086]
[1723730990172,0.482472,59569.0,59568.0,0.007086]
[1723730990365,0.818217,59569.0,59568.0,0.007086]
[1723730990566,1.489707,59569.0,59568.0,0.007086]
[1723730992357,0.022,59569.0,59568.0,0.007086]
[1723730992569,0.022,59569.0,59568.0,0.510711]
[1723730992736,0.022,59569.0,59568.0,0.174961]
[1723730992941,0.022,59569.0,59568.0,0.76181973]
[1723730993297,0.022,59569.0,59568.0,0.25819473]
[1723730993682,0.04214741,59569.0,59568.0,0.25819473]
[1723730993885,0.022,59569.0,59568.0,0.01859473]
[1723730994735,0.525617,59569.0,59568.0,0.01859473]
[1723730995113,0.861362,59569.0,59568.0,0.01859473]
[1723730995309,1.60276154,59569.0,59568.0,0.007086]
[1723730995576,1.87277653,59569.0,59568.0,0.007086]
[1723730995853,2.05087653,59569.0,59568.0,0.007086]
[1723730996196,2.38662153,59569.0,59568.0,0.007086]
[1723730996605,2.39571853,59569.0,59568.0,0.007086]
[1723730996999,2.4472602,59569.0,59568.0,0.007086]
[1723730998086,2.4472602,59569.0,59546.0,0.2371]
[1723730998087,0.167923,59551.0,59546.0,0.0153873]
[1723730998289,0.167923,59551.0,59550.0,0.51466362]
[1723730998527,0.167928,59550.0,59546.0,0.0153873]
[1723730998734,0.2183047,59550.0,59546.0,0.0153873]
[1723730998994,0.0503767,59550.0,59546.0,0.0153873]
[1723730999204,0.33583,59554.0,59546.0,0.0153873]
[1723730999375,0.335822,59556.0,59546.0,0.3542573]
[1723730999606,0.345,59560.0,59546.0,0.0183873]
[1723730999779,0.345,59560.0,59551.0,0.335843]
[1723730999780,0.35677019,59560.0,59551.0,0.335843]
[1723730999999,0.35677019,59560.0,59551.0,0.167922]
[1723731000000,0.167909,59556.0,59551.0,0.167922]
[1723731000119,0.167909,59556.0,59549.0,0.335852]
[1723731000328,0.167917,59554.0,59546.0,0.3512593]
[1723731000585,0.091152,59555.0,59548.0,0.167931]
[1723731000785,0.335817,59557.0,59546.0,0.0153873]
[1723731000989,0.07980595,59557.0,59549.0,0.335856]
[1723731001165,0.167909,59556.0,59549.0,0.335856]
[1723731001381,0.01177019,59560.0,59552.0,0.335837]
[1723731001573,0.08299731,59560.0,59554.0,0.335826]
[1723731001779,0.76025454,59568.0,59559.0,0.1679]
[1723731001984,0.004,59557.0,59552.0,0.2193]
[1723731002184,0.16791,59556.0,59552.0,0.2193]
[1723731002390,0.004,59557.0,59555.0,0.167911]
[1723731002590,0.004,59557.0,59552.0,0.555137]
[1723731002591,0.167901,59559.0,59552.0,0.555137]
[1723731002875,0.014,59560.0,59555.0,0.167911]
[1723731003071,0.167912,59555.0,59552.0,0.2193]
[1723731003270,0.21723757,59559.0,59552.0,0.2193]
[1723731003641,0.181899,59560.0,59554.0,0.167914]
[1723731003747,0.181899,59560.0,59552.0,0.2193]
[1723731003748,0.014,59560.0,59552.0,0.2193]
[1723731003954,0.1679,59559.0,59554.0,0.167914]
[1723731004208,0.1679,59559.0,59552.0,0.555138]
[1723731004371,0.002,59556.0,59555.0,0.503733]
[1723731004595,0.002,59556.0,59552.0,0.555137]
[1723731004759,0.002,59556.0,59554.0,0.167913]
[1723731005190,0.24765532,59560.0,59554.0,0.167913]
[1723731005378,0.08577727,59555.0,59546.0,0.2365108]
[1723731005585,0.16792,59552.0,59546.0,0.4044468]
[1723731005784,0.03341428,59554.0,59546.0,0.4044468]
[1723731005785,0.167923,59551.0,59546.0,0.4044468]
[1723731005998,0.03341428,59554.0,59547.0,0.167933]
[1723731006199,0.10391981,59553.0,59549.0,0.167927]
[1723731006413,0.003,59556.0,59554.0,0.167914]
[1723731006635,0.003,59556.0,59551.0,0.335846]
[1723731006915,0.003,59556.0,59549.0,0.335854]
[1723731006916,0.1880015,59556.0,59549.0,0.335854]
[1723731007128,0.003,59556.0,59550.0,0.335852]
[1723731007336,0.003,59556.0,59549.0,0.335854]
[1723731007337,0.003,59556.0,59555.0,0.503736]
[1723731007549,0.003,59556.0,59555.0,1.44931454]
[1723731007756,0.009925,59569.0,59555.0,1.44931454]
[1723731007757,0.000828,59569.0,59563.0,0.335777]
[1723731007987,0.000828,59569.0,59563.0,0.335778]
[1723731007988,0.01262569,59569.0,59563.0,0.335778]
[1723731008193,0.03483547,59568.0,59565.0,0.167881]
[1723731008403,0.20271247,59568.0,59562.0,0.167891]
[1723731008613,0.05392835,59567.0,59562.0,0.167891]
[1723731008827,0.05392835,59567.0,59563.0,0.167888]
[1723731009048,0.05392835,59567.0,59563.0,0.335776]
[1723731009280,0.03483547,59568.0,59561.0,0.167892]
[1723731009496,0.03483547,59568.0,59555.0,0.2342]
[1723731009497,0.572468,59565.0,59555.0,0.2342]
[1723731009696,0.167898,59560.0,59555.0,0.2342]
[1723731009898,0.2367,59565.0,59557.0,0.167905]
[1723731009899,0.167889,59563.0,59557.0,0.167905]
[1723731010108,0.17155454,59568.0,59562.0,0.335781]
[1723731010109,0.01162539,59568.0,59562.0,0.335781]
[1723731010342,0.17950039,59568.0,59562.0,0.16789]
[1723731010541,0.17950039,59568.0,59557.0,0.03364]
[1723731010542,0.335754,59568.0,59557.0,0.03364]
[1723731010747,0.167886,59565.0,59559.0,0.167898]
[1723731010960,0.167899,59560.0,59555.0,0.2342]
[1723731011177,0.03702482,59565.0,59555.0,0.2342]
[1723731011381,0.03702482,59565.0,59558.0,0.335804]
[1723731011630,0.167881,59566.0,59559.0,0.335799]
[1723731011842,0.01225949,59569.0,59563.0,0.167888]
[1723731012045,0.167876,59568.0,59562.0,0.167891]
[1723731012255,0.335771,59565.0,59555.0,0.001]
[1723731012467,1.29002227,59556.0,59555.0,0.001]
[1723731012678,2.31561281,59556.0,59555.0,0.001]
[1723731012881,2.31561281,59556.0,59543.0,0.009097]
[1723731012882,0.134964,59547.0,59543.0,0.009097]
[1723731013090,0.167921,59552.0,59543.0,0.344986]
[1723731013295,0.17155454,59555.0,59544.0,0.335883]
[1723731013500,0.16792,59552.0,59547.0,0.167933]
[1723731013706,0.1824,59556.0,59546.0,0.3367808]
[1723731013902,0.167917,59553.0,59548.0,0.167931]
[1723731014106,0.167914,59554.0,59548.0,0.167931]
[1723731014356,0.335825,59555.0,59547.0,0.335865]
[1723731014556,0.1300012,59554.0,59549.0,0.167928]
[1723731014769,0.167915,59554.0,59548.0,0.167929]
[1723731014975,0.167915,59554.0,59549.0,0.167928]
[1723731015187,0.16792,59552.0,59546.0,0.0009108]
[1723731015400,0.167917,59553.0,59546.0,0.0009108]
[1723731015854,0.167917,59553.0,59549.0,0.0009108]
[1723731016061,0.08295947,59552.0,59549.0,0.0009108]
[1723731016451,0.08395947,59552.0,59549.0,0.0009108]
[1723731017292,0.08395947,59552.0,59550.0,0.167924]
[1723731017515,0.08395947,59552.0,59549.0,0.1688378]
[1723731017516,0.001,59552.0,59549.0,0.1688378]
[1723731017710,0.001,59552.0,59549.0,0.0009108]
[1723731017950,0.02964226,59551.0,59549.0,0.0009108]
[1723731018156,0.335827,59555.0,59549.0,0.0009108]
[1723731018157,0.001,59552.0,59549.0,0.1688368]
[1723731018323,0.001,59552.0,59549.0,0.3367668]
[1723731018529,0.001,59552.0,59550.0,0.167924]
[1723731018932,0.167916,59554.0,59549.0,0.0009108]
[1723731019157,0.37917034,59556.0,59549.0,0.1688378]
[1723731019365,0.167915,59554.0,59549.0,0.1688388]
[1723731019572,0.37917034,59556.0,59549.0,0.0009108]
[1723731019573,0.03791703,59555.0,59549.0,0.0009108]
[1723731019784,0.1,59564.0,59549.0,0.0009108]
[1723731019785,0.24730899,59567.0,59550.0,0.58665454]
[1723731019984,0.0483337,59566.0,59565.0,0.167883]
[1723731020194,0.1815,59572.0,59561.0,0.2347]
[1723731020400,0.1815,59580.0,59568.0,0.839375]
[1723731020624,0.399639,59581.0,59549.0,0.0009108]
[1723731020625,0.414128,59569.0,59549.0,0.0009108]
[1723731020856,0.95775527,59550.0,59549.0,0.0009108]
[1723731021068,1.29360727,59550.0,59549.0,0.0009108]
[1723731021269,1.62945927,59550.0,59549.0,0.0009108]
[1723731021480,1.65830727,59550.0,59549.0,0.0009108]
[1723731021944,1.75830727,59550.0,59549.0,0.0009108]
[1723731022144,2.09415927,59550.0,59549.0,0.0009108]
[1723731022374,2.10815927,59550.0,59549.0,0.0009108]
[1723731022801,0.3647,59532.0,59526.0,0.0045278]
[1723731023011,0.92572927,59527.0,59526.0,0.0045278]
[1723731023214,1.43326481,59527.0,59526.0,0.0045278]
[1723731023423,2.09354581,59527.0,59526.0,0.0045278]
[1723731023636,1.75756481,59527.0,59526.0,0.0045278]
[1723731023845,1.957631,59512.0,59511.0,0.0002]
[1723731024053,2.21496281,59512.0,59511.0,0.0002]
[1723731024297,2.65102881,59512.0,59511.0,0.0002]
[1723731024826,2.65102881,59512.0,59500.0,1.0]
[1723731024827,1.18629,59509.0,59500.0,1.0]
[1723731025033,2.57317981,59501.0,59500.0,1.0]
[1723731025268,3.69073581,59501.0,59500.0,1.0]
[1723731025475,3.69073581,59501.0,59479.0,0.0004961]
[1723731025476,2.588324,59494.0,59479.0,0.0004961]
[1723731025709,1.10707,59480.0,59479.0,0.0004961]
[1723731025947,0.869138,59472.0,59471.0,0.0002]
[1723731026156,2.43246138,59472.0,59471.0,0.0002]
[1723731026355,2.86875338,59472.0,59471.0,0.0002]
[1723731026560,2.53246138,59472.0,59471.0,0.0002]
[1723731026813,2.53246138,59472.0,59433.0,0.0023739]
[1723731026814,0.7294,59452.0,59433.0,0.0023739]
[1723731027043,0.3647,59438.0,59436.0,0.51466362]
[1723731027239,0.5767,59451.0,59433.0,0.0023739]
[1723731027240,0.3647,59437.0,59433.0,0.0023739]
[1723731027439,0.1,59451.0,59434.0,0.1902]
[1723731027655,0.32007727,59458.0,59435.0,0.00162281]
[1723731027656,0.2343,59458.0,59435.0,0.00162281]
[1723731027861,0.50476,59434.0,59433.0,0.0023739]
[1723731028070,0.18577727,59457.0,59433.0,0.0023739]
[1723731028071,0.2343,59456.0,59433.0,0.0023739]
[1723731028279,0.08577727,59445.0,59433.0,0.0023739]
[1723731028478,0.1,59448.0,59433.0,0.0023739]
[1723731028728,0.08577727,59445.0,59433.0,0.0023739]
[1723731028993,0.17155454,59444.0,59433.0,0.0023739]
[1723731029240,0.168253,59434.0,59433.0,0.0023739]
[1723731029531,0.67631454,59434.0,59433.0,0.0023739]
[1723731029804,0.268253,59434.0,59433.0,0.0023739]
[1723731030078,0.1,59434.0,59433.0,0.0023739]
[1723731030569,0.08577727,59451.0,59433.0,0.0023739]
[1723731030570,0.012,59445.0,59434.0,0.336506]
[1723731030823,0.012,59445.0,59439.0,0.1785]
[1723731031072,0.1787,59464.0,59446.0,0.336439]
[1723731031073,0.08577727,59464.0,59446.0,0.336439]
[1723731031339,0.32989284,59472.0,59447.0,0.1974028]
[1723731031625,0.32989284,59472.0,59433.0,0.0023739]
[1723731031626,0.08577727,59460.0,59433.0,0.0023739]
[1723731031883,0.2404,59459.0,59433.0,0.0023739]
[1723731032145,0.2404,59459.0,59442.0,0.16823]
[1723731032146,0.168206,59451.0,59442.0,0.16823]
[1723731032364,0.012,59445.0,59437.0,0.168245]
[1723731032599,0.012,59445.0,59433.0,0.0023739]
[1723731032600,0.012,59445.0,59438.0,0.168239]
[1723731032836,0.168232,59442.0,59433.0,0.0023739]
[1723731033079,0.05079655,59449.0,59435.0,0.3365]
[1723731033318,0.0674,59452.0,59437.0,0.2314]
[1723731033564,0.0674,59452.0,59451.0,0.168205]
[1723731033839,0.0674,59452.0,59451.0,0.841027]
[1723731034075,0.168173,59463.0,59456.0,0.168191]
[1723731034316,0.004,59460.0,59440.0,0.08577727]
[1723731034591,0.004,59460.0,59459.0,0.393383]
[1723731034853,0.004,59460.0,59453.0,0.336396]
[1723731034854,0.067383,59467.0,59453.0,0.2221]
[1723731035115,0.168178,59461.0,59454.0,0.168196]
[1723731035387,0.2415,59478.0,59453.0,0.2221]
[1723731035624,0.06738,59470.0,59460.0,0.336359]
[1723731035869,0.06738,59470.0,59454.0,0.17155454]
[1723731035870,0.168155,59469.0,59462.0,0.168173]
[1723731036121,0.336271,59476.0,59453.0,0.24451]
[1723731036383,0.336324,59467.0,59453.0,0.39365454]
[1723731036629,0.336378,59457.0,59445.0,0.2271]
[1723731037008,0.168219,59446.0,59445.0,0.2271]
[1723731037172,0.17155454,59456.0,59439.0,0.187]
[1723731037426,0.17155454,59456.0,59438.0,0.2273]
[1723731037427,0.336415,59451.0,59438.0,0.2273]
[1723731037672,0.168226,59444.0,59437.0,0.168245]
[1723731037899,0.5672,59463.0,59440.0,0.08577727]
[1723731037900,0.1903,59462.0,59440.0,0.08577727]
[1723731038146,0.51466362,59458.0,59435.0,0.0531486]
[1723731038389,0.336397,59454.0,59443.0,0.168226]
[1723731038626,0.1,59457.0,59439.0,0.001]
[1723731038627,0.336473,59440.0,59439.0,0.001]
[1723731038901,0.84097988,59440.0,59439.0,0.001]
[1723731039177,0.84097988,59440.0,59433.0,0.0023739]
[1723731039178,0.841267,59434.0,59433.0,0.0023739]
[1723731039399,1.44932854,59434.0,59433.0,0.0023739]
[1723731039605,0.1,59440.0,59433.0,0.0023739]
[1723731039795,0.1,59439.0,59433.0,0.0023739]
[1723731040042,0.1,59439.0,59435.0,0.08577727]
[1723731040261,0.168213,59449.0,59438.0,0.336484]
[1723731040476,0.168213,59449.0,59435.0,0.08577727]
[1723731040477,0.1,59448.0,59443.0,0.168225]
[1723731040704,0.168226,59444.0,59437.0,0.336488]
[1723731040930,0.168229,59443.0,59437.0,0.168244]
[1723731041151,0.006,59440.0,59433.0,0.1706289]
[1723731041371,0.006,59440.0,59433.0,0.0023739]
[1723731041574,0.006,59440.0,59439.0,0.168239]
[1723731041785,0.168246,59437.0,59433.0,0.0023739]
[1723731042009,0.1,59448.0,59434.0,0.60044089]
[1723731042228,0.011,59444.0,59442.0,0.16823]
[1723731042460,0.011,59444.0,59434.0,0.42228327]
[1723731042461,0.011,59444.0,59443.0,0.504684]
[1723731042661,0.2355,59460.0,59439.0,0.1895]
[1723731042662,0.2355,59460.0,59440.0,0.08577727]
[1723731042877,0.168206,59451.0,59440.0,0.42225027]
[1723731043087,0.17155454,59459.0,59448.0,0.168211]
[1723731043316,0.17155454,59459.0,59446.0,0.08577727]
[1723731043551,0.17155454,59459.0,59444.0,0.560351]
[1723731043552,0.168199,59454.0,59447.0,0.168215]
[1723731043774,0.17155454,59459.0,59444.0,0.2239]
[1723731043775,0.50792354,59459.0,59450.0,0.168206]
[1723731043984,0.168192,59456.0,59450.0,0.168208]
[1723731044198,0.268194,59455.0,59447.0,0.33643]
[1723731044421,0.268194,59455.0,59440.0,0.41724527]
[1723731044422,0.1,59455.0,59440.0,0.41724527]
[1723731044684,0.1,59455.0,59432.0,0.4692]
[1723731044685,0.168231,59442.0,59437.0,0.2239]
[1723731044895,0.336411,59452.0,59437.0,0.2239]
[1723731045107,0.336431,59448.0,59440.0,0.25401127]
[1723731045320,0.168232,59442.0,59437.0,0.2239]
[1723731045525,0.336434,59447.0,59437.0,0.2239]
[1723731045730,0.11715545,59450.0,59437.0,0.2239]
[1723731045944,0.1,59450.0,59448.0,0.08577727]
[1723731046150,0.1,59450.0,59448.0,0.25399027]
[1723731046358,0.007,59455.0,59448.0,0.08577727]
[1723731046572,0.168199,59454.0,59448.0,0.08577727]
[1723731046779,0.007,59455.0,59440.0,0.08577727]
[1723731046994,0.168201,59453.0,59444.0,0.336449]
[1723731047196,0.007,59455.0,59451.0,0.168205]
[1723731047412,0.26819,59457.0,59450.0,0.336412]
[1723731047616,0.268189,59457.0,59446.0,0.08577727]
[1723731047833,0.31138293,59457.0,59451.0,0.168205]
[1723731048052,0.336327,59466.0,59446.0,0.08577727]
[1723731048053,0.168155,59469.0,59453.0,0.4125]
[1723731048278,0.2365,59475.0,59461.0,0.08577727]
[1723731048487,0.168158,59468.0,59462.0,0.168174]
[1723731048700,0.2365,59475.0,59464.0,0.168167]
[1723731048701,0.3363,59471.0,59464.0,0.168167]
[1723731048911,0.336296,59472.0,59462.0,0.336348]
[1723731049133,0.014,59457.0,59456.0,0.840957]
[1723731049345,0.2273,59484.0,59472.0,0.336288]
[1723731049568,0.2273,59484.0,59456.0,0.27674]
[1723731049569,0.067367,59482.0,59473.0,0.08577727]
[1723731049795,0.33622,59485.0,59477.0,0.168131]
[1723731049796,0.168115,59483.0,59477.0,0.168131]
[1723731050201,0.33623,59484.0,59475.0,0.336274]
[1723731050404,0.33623,59484.0,59476.0,0.168134]
[1723731050405,0.168121,59481.0,59476.0,0.168134]
[1723731050614,0.067361,59487.0,59475.0,0.08577727]
[1723731050829,0.2328,59496.0,59483.0,0.336228]
[1723731051039,0.2328,59496.0,59476.0,0.17155454]
[1723731051040,0.336174,59493.0,59477.0,0.336261]
[1723731051260,0.336174,59493.0,59482.0,0.336234]
[1723731051474,0.336174,59493.0,59485.0,0.168109]
[1723731051475,0.168093,59491.0,59485.0,0.168109]
[1723731051681,0.067352,59495.0,59484.0,0.08577727]
[1723731051889,0.27501,59496.0,59485.0,0.168108]
[1723731052112,0.168092,59491.0,59486.0,0.168105]
[1723731052279,0.067351,59496.0,59489.0,0.08577727]
[1723731052493,0.067351,59496.0,59486.0,0.33621]
[1723731052494,0.39095454,59503.0,59488.0,0.237]
[1723731052708,0.39095454,59503.0,59478.0,0.16655454]
[1723731052926,0.168082,59495.0,59485.0,0.336215]
[1723731053146,0.168091,59492.0,59486.0,0.168105]
[1723731053365,0.2273,59512.0,59491.0,0.1796]
[1723731053581,0.0083,59514.0,59503.0,0.537815]
[1723731053792,0.0083,59514.0,59500.0,0.2313]
[1723731054009,0.33609,59508.0,59500.0,0.2313]
[1723731054225,0.0083,59514.0,59503.0,0.504175]
[1723731054435,0.0083,59514.0,59501.0,0.336126]
[1723731054657,0.336096,59507.0,59500.0,0.2313]
[1723731054884,0.336067,59512.0,59503.0,0.168058]
[1723731055099,0.168031,59513.0,59503.0,0.168058]
[1723731055330,0.336076,59511.0,59503.0,0.168058]
[1723731055552,0.336065,59513.0,59503.0,0.168058]
[1723731055768,0.0083,59514.0,59503.0,0.504175]
[1723731056026,0.0083,59514.0,59503.0,1.03484654]
[1723731056252,0.0083,59514.0,59503.0,1.37096354]
[1723731056480,0.0083,59514.0,59503.0,1.96742054]
[1723731056685,0.0033,59504.0,59503.0,2.15862054]
[1723731057108,0.0033,59504.0,59503.0,2.16062054]
[1723731057554,0.0083,59514.0,59513.0,1.209853]
[1723731057821,0.1,59553.0,59513.0,1.209853]
[1723731057822,0.167953,59541.0,59515.0,1.052462]
[1723731058017,0.167954,59541.0,59515.0,2.12151454]
[1723731058229,0.2177,59545.0,59523.0,0.002]
[1723731058440,0.1817,59547.0,59523.0,0.002]
[1723731058441,0.1817,59547.0,59538.0,0.503878]
[1723731058697,0.1817,59547.0,59535.0,0.335931]
[1723731058698,0.335882,59545.0,59536.0,0.167964]
[1723731058918,0.1817,59547.0,59538.0,0.01303096]
[1723731058919,0.168157,59539.0,59538.0,0.01303096]
[1723731059169,0.0002,59539.0,59538.0,0.167959]
[1723731059390,0.0002,59539.0,59538.0,0.873437]
[1723731059604,0.0002,59539.0,59538.0,1.82051054]
[1723731060082,0.0002,59539.0,59538.0,0.4166]
[1723731060288,0.0002,59539.0,59534.0,0.03364]
[1723731060500,0.0002,59539.0,59532.0,0.2378]
[1723731060501,0.0002,59539.0,59538.0,0.503878]
[1723731060710,0.0002,59539.0,59538.0,0.167959]
[1723731061125,0.0002,59539.0,59536.0,0.33593]
[1723731061348,0.0002,59539.0,59534.0,0.335941]
[1723731061572,0.0002,59539.0,59532.0,0.2378]
[1723731061779,0.0002,59539.0,59533.0,0.335945]
[1723731061989,0.0002,59539.0,59534.0,0.167969]
[1723731062203,0.0002,59539.0,59536.0,0.167964]
[1723731062454,0.0012,59539.0,59536.0,0.181964]
[1723731063006,0.0002,59539.0,59537.0,0.01302492]
[1723731063249,0.167959,59538.0,59537.0,0.01302492]
[1723731063483,0.0012,59539.0,59537.0,0.01302492]
[1723731064027,0.0012,59539.0,59534.0,0.349936]
[1723731064490,0.335936,59535.0,59534.0,0.014]
[1723731064494,0.83984,59535.0,59534.0,0.014]
[1723731064755,0.21272,59539.0,59533.0,0.335946]
[1723731064756,0.0002,59539.0,59533.0,0.335946]
[1723731065053,0.0002,59539.0,59538.0,0.503878]
[1723731065271,0.0002,59539.0,59538.0,1.20035154]
[1723731066030,0.0112,59539.0,59534.0,0.33594]
[1723731066264,0.0112,59539.0,59538.0,0.503878]
[1723731066549,0.0002,59539.0,59538.0,0.73207254]
[1723731066808,0.0002,59539.0,59538.0,1.40591054]
[1723731067055,0.000828,59556.0,59555.0,0.167912]
[1723731067307,0.000828,59556.0,59555.0,0.67529054]
[1723731067628,0.000828,59556.0,59555.0,0.69829054]
[1723731067787,0.000828,59556.0,59555.0,0.33946654]
[1723731068048,0.000828,59556.0,59555.0,1.43271581]
[1723731068284,0.000828,59556.0,59555.0,1.45571581]
[1723731068553,1e-08,59564.0,59563.0,0.167889]
[1723731068792,1e-08,59564.0,59555.0,0.22819454]
[1723731068793,1e-08,59564.0,59557.0,0.03364]
[1723731069045,1e-08,59564.0,59557.0,0.201545]
[1723731069342,1e-08,59564.0,59557.0,0.03364]
[1723731069592,0.167895,59561.0,59557.0,0.03364]
[1723731069828,1e-08,59564.0,59563.0,0.007]
[1723731069829,0.22860001,59564.0,59563.0,0.007]
[1723731070075,1.06803201,59564.0,59563.0,0.007]
[1723731070334,0.73225901,59564.0,59563.0,0.007]
[1723731070573,1.24733201,59564.0,59563.0,0.007]
[1723731070821,1.41888655,59564.0,59563.0,0.007]
[1723731071058,1.85465955,59564.0,59563.0,0.007]
[1723731071297,2.02621409,59564.0,59563.0,0.007]
[1723731071771,0.167933,59548.0,59541.0,0.562398]
[1723731072018,0.839517,59558.0,59557.0,0.005]
[1723731072263,1.11107154,59558.0,59557.0,0.005]
[1723731072507,0.167946,59543.0,59541.0,0.51466362]
[1723731072749,0.16794,59545.0,59541.0,0.51466362]
[1723731073014,0.16794,59545.0,59531.0,0.335958]
[1723731073015,0.167961,59538.0,59530.0,0.33596]
[1723731073251,0.19531493,59553.0,59535.0,0.51466362]
[1723731073495,0.1,59552.0,59548.0,0.167929]
[1723731073735,0.16793,59549.0,59544.0,0.16794]
[1723731073992,0.1,59552.0,59534.0,0.167971]
[1723731073993,0.026793,59548.0,59534.0,0.167971]
[1723731074244,0.335859,59549.0,59540.0,0.167953]
[1723731074500,0.1,59552.0,59534.0,0.68621816]
[1723731074501,0.02838,59551.0,59539.0,0.335913]
[1723731074748,0.33587,59547.0,59538.0,0.167958]
[1723731074984,0.001,59543.0,59541.0,0.008]
[1723731075342,0.001,59543.0,59542.0,0.503845]
[1723731075590,0.1778,59560.0,59543.0,0.2265]
[1723731075829,0.16788601,59564.0,59550.0,0.33585]
[1723731076077,0.001,59551.0,59550.0,0.839628]
[1723731076304,0.001,59551.0,59550.0,1.27028599]
[1723731076525,1e-08,59564.0,59550.0,0.19455454]
[1723731076816,1e-08,59564.0,59557.0,0.167906]
[1723731076817,0.167892,59562.0,59557.0,0.167906]
[1723731077089,0.33577701,59564.0,59553.0,0.03364]
[1723731077090,1e-08,59564.0,59553.0,0.03364]
[1723731077321,1e-08,59564.0,59558.0,0.167901]
[1723731077322,0.16788601,59564.0,59558.0,0.167901]
[1723731077579,0.16788701,59564.0,59559.0,0.167899]
[1723731078031,1e-08,59564.0,59557.0,0.335808]
[1723731078279,1e-08,59564.0,59561.0,0.167894]
[1723731078681,1e-08,59564.0,59560.0,0.167897]
[1723731079121,0.1679,59560.0,59555.0,0.03364]
[1723731079339,0.167901,59559.0,59555.0,0.03364]
[1723731079558,0.2416,59556.0,59552.0,0.03364]
[1723731079775,1e-08,59564.0,59544.0,0.17155454]
[1723731079776,0.335799,59560.0,59544.0,0.17155454]
[1723731079993,0.24160001,59564.0,59563.0,0.503667]
[1723731079994,1e-08,59564.0,59563.0,0.503667]
[1723731080204,1e-08,59564.0,59561.0,0.003]
[1723731081047,0.08577727,59562.0,59552.0,0.03364]
[1723731081326,0.08577727,59562.0,59523.0,0.01]
[1723731081327,0.2413,59532.0,59526.0,0.335984]
[1723731081568,0.503955,59529.0,59528.0,0.51466362]
[1723731081793,0.34717633,59532.0,59516.0,0.0009108]
[1723731081794,0.1,59531.0,59516.0,0.0009108]
[1723731082001,0.504057,59517.0,59516.0,0.0009108]
[1723731082213,0.168019,59517.0,59516.0,0.0009108]
[1723731082430,0.840095,59517.0,59516.0,0.0009108]
[1723731082646,1.176133,59517.0,59516.0,0.0009108]
[1723731083007,0.168014,59519.0,59516.0,0.0009108]
[1723731083189,0.336004,59523.0,59516.0,0.0009108]
[1723731083190,0.168011,59520.0,59516.0,0.0009108]
[1723731083393,0.1,59524.0,59516.0,0.0009108]
[1723731085982,0.05046773,59548.0,59531.0,0.023]
[1723731086181,0.05046773,59548.0,59530.0,0.03364]
[1723731086182,0.17155454,59547.0,59530.0,0.03364]
[1723731086391,0.335919,59539.0,59527.0,0.335981]
[1723731086594,0.16797,59535.0,59527.0,0.20519454]
[1723731086812,0.09737555,59546.0,59530.0,0.03364]
[1723731087019,0.001,59538.0,59531.0,0.19455454]
[1723731087228,0.001,59538.0,59535.0,0.167967]
[1723731087431,0.001,59538.0,59532.0,0.335952]
[1723731087633,0.001,59538.0,59533.0,0.335946]
[1723731087884,0.001,59538.0,59533.0,0.335945]
[1723731088125,0.001,59538.0,59532.0,0.17155454]
[1723731089050,0.167946,59543.0,59536.0,0.33593]
[1723731089184,0.167946,59543.0,59537.0,0.167962]
[1723731089383,0.167946,59543.0,59532.0,0.17155454]
[1723731089384,0.167955,59540.0,59535.0,0.167967]
[1723731090064,0.12446023,59543.0,59530.0,0.03364]
[1723731090261,0.1,59548.0,59530.0,0.03364]
[1723731090262,0.167969,59535.0,59532.0,0.004]
[1723731090706,0.931322,59533.0,59532.0,0.004]
[1723731090909,1.603218,59533.0,59532.0,0.004]
[1723731091533,1.87477254,59533.0,59532.0,0.004]
[1723731091740,1.94207754,59533.0,59532.0,0.004]
[1723731092147,0.2208,59539.0,59532.0,0.004]
[1723731092365,0.1,59538.0,59532.0,0.004]
[1723731092507,0.167974,59533.0,59532.0,0.004]
[1723731092940,0.167974,59533.0,59528.0,0.167986]
[1723731093562,0.167971,59534.0,59528.0,0.167986]
[1723731093905,0.167971,59534.0,59526.0,0.335983]
[1723731093906,0.167946,59543.0,59531.0,0.08577727]
[1723731094227,0.335903,59541.0,59531.0,0.17155454]
[1723731094409,0.004,59533.0,59532.0,0.5048377]
[1723731094651,0.004,59533.0,59532.0,0.8407907]
[1723731094867,0.335911,59540.0,59532.0,0.0009097]
[1723731095089,0.167957,59539.0,59534.0,0.16797]
[1723731095520,0.335911,59540.0,59533.0,0.167973]
[1723731095748,0.435897,59542.0,59533.0,0.335944]
[1723731095951,0.167957,59539.0,59533.0,0.503915]
[1723731096161,0.167957,59539.0,59534.0,0.167969]
[1723731096369,0.435897,59542.0,59532.0,0.0009097]
[1723731096370,0.1,59542.0,59532.0,0.0009097]
[1723731096581,0.168773,59543.0,59542.0,0.167948]
[1723731096582,0.010827,59543.0,59542.0,0.167948]
[1723731096793,0.010827,59543.0,59542.0,0.537485]
[1723731097029,0.010827,59543.0,59542.0,0.873382]
[1723731097235,0.000827,59543.0,59542.0,1.40383354]
[1723731097756,0.000827,59543.0,59542.0,1.06793654]
[1723731098979,1e-08,59564.0,59552.0,0.239]
[1723731099339,0.51466362,59563.0,59561.0,0.167893]
[1723731099538,1e-08,59564.0,59561.0,0.167893]